bitfinex/quotes_SOLUSD_20241126
["timestamp","ask_amount","ask_price","bid_price","bid_amount"]
[1732610803360,27.75247994,232.59,232.52,27.75247994]
[1732610803569,15.044,232.65,232.54,27.75247994]
[1732610803570,27.75247994,232.61,232.54,27.75247994]
[1732610803743,10.744,232.69,232.59,27.75247994]
[1732610803946,27.75247994,232.65,232.58,27.75247994]
[1732610804268,27.75247994,232.64,232.57,27.75247994]
[1732610804766,27.75247994,232.63,232.56,27.75247994]
[1732610806752,32.05117994,232.63,232.56,27.75247994]
[1732610807563,4.2987,232.63,232.57,27.75247994]
[1732610807866,4.2987,232.63,232.58,27.75247994]
[1732610808059,4.2987,232.63,232.57,27.75247994]
[1732610809170,4.2987,232.63,232.58,27.75247994]
[1732610809968,27.75247994,232.69,232.62,27.75247994]
[1732610810172,27.75247994,232.7,232.63,27.75247994]
[1732610810348,32.04947994,232.72,232.65,27.75247994]
[1732610810956,4.297,232.72,232.66,27.75247994]
[1732610812051,4.297,232.72,232.56,41.14147229]
[1732610812052,27.75247994,232.71,232.64,27.75247994]
[1732610812248,23.776884,232.7,232.66,27.75247994]
[1732610812571,23.776884,232.71,232.65,27.75247994]
[1732610812869,51.52936394,232.71,232.64,27.75247994]
[1732610813165,27.75247994,232.65,232.57,27.75247994]
[1732610813466,51.52936394,232.64,232.57,27.75247994]
[1732610813678,27.75247994,232.62,232.55,27.75247994]
[1732610814152,27.75247994,232.6,232.53,27.75247994]
[1732610814467,24.2973,232.7,232.59,27.75247994]
[1732610814651,23.776884,232.69,232.63,27.75247994]
[1732610814855,51.52936394,232.69,232.62,27.75247994]
[1732610815159,23.776884,232.69,232.64,27.75247994]
[1732610815363,28.074384,232.69,232.64,27.75247994]
[1732610815565,27.75247994,232.68,232.61,27.75247994]
[1732610816155,27.75247994,232.68,232.59,4.2992]
[1732610816156,28.074384,232.69,232.63,27.75247994]
[1732610816372,4.2973,232.71,232.67,27.75247994]
[1732610816676,63.07067994,232.73,232.67,27.75247994]
[1732610816965,63.07067994,232.73,232.66,27.75247994]
[1732610817846,23.776884,232.72,232.66,27.75247994]
[1732610819671,4.2971,232.71,232.66,27.75247994]
[1732610820480,32.04957994,232.71,232.64,27.75247994]
[1732610820779,51.52936394,232.7,232.63,27.75247994]
[1732610821157,20.0,232.75,232.61,16.4872]
[1732610821366,47.75247994,232.75,232.68,27.75247994]
[1732610821766,27.75247994,232.7,232.63,27.75247994]
[1732610821957,20.0,232.73,232.56,12.2145]
[1732610822155,20.0,232.7,232.54,4.3002]
[1732610822356,20.0,232.7,232.53,30.9159]
[1732610822584,23.776884,232.63,232.5,12.2145]
[1732610822890,20.0,232.56,232.44,12.2145]
[1732610823054,20.0,232.56,232.09,81.9]
[1732610823055,27.75247994,232.46,232.4,27.75247994]
[1732610823259,27.75247994,232.43,232.36,27.75247994]
[1732610823480,27.75247994,232.42,232.35,27.75247994]
[1732610823654,27.75247994,232.41,232.34,27.75247994]
[1732610823850,27.75247994,232.42,232.35,27.75247994]
[1732610824085,23.776884,232.5,232.33,14.3041]
[1732610824263,23.776884,232.5,232.35,10.0]
[1732610824457,20.0,232.51,232.35,10.0]
[1732610824782,23.776884,232.5,232.33,14.3041]
[1732610824986,27.75247994,232.42,232.31,16.5189]
[1732610825156,27.75247994,232.43,232.36,27.75247994]
[1732610825982,27.75247994,232.44,232.37,27.75247994]
[1732610826273,10.7517,232.52,232.32,32.05687994]
[1732610826274,20.0,232.49,232.32,32.05687994]
[1732610826460,23.776884,232.48,232.32,32.05687994]
[1732610827362,27.75247994,232.45,232.38,27.75247994]
[1732610827556,51.52936394,232.44,232.37,27.75247994]
[1732610827879,20.0,232.47,232.43,27.75247994]
[1732610828077,27.75247994,232.53,232.46,27.75247994]
[1732610828402,27.75247994,232.52,232.33,10.0]
[1732610828674,4.2999,232.56,232.35,10.0]
[1732610829054,4.2999,232.56,232.4,20.0]
[1732610829275,4.2999,232.56,232.38,20.0]
[1732610829478,27.75247994,232.53,232.46,27.75247994]
[1732610829771,27.75247994,232.52,232.45,27.75247994]
[1732610829955,27.75247994,232.49,232.42,27.75247994]
[1732610830160,27.75247994,232.43,232.37,27.75247994]
[1732610830482,20.0,232.49,232.31,12.2145]
[1732610830658,23.776884,232.46,232.31,16.519]
[1732610830862,23.776884,232.42,232.31,16.519]
[1732610831165,64.30207994,232.56,232.31,16.519]
[1732610831362,20.0,232.52,232.31,16.519]
[1732610831566,27.75247994,232.5,232.43,27.75247994]
[1732610832070,27.75247994,232.49,232.42,27.75247994]
[1732610832278,27.75247994,232.48,232.41,27.75247994]
[1732610832479,27.75247994,232.47,232.4,27.75247994]
[1732610832777,27.75247994,232.44,232.37,27.75247994]
[1732610832976,27.75247994,232.43,232.36,27.75247994]
[1732610833155,27.75247994,232.45,232.38,27.75247994]
[1732610833365,23.776884,232.45,232.39,27.75247994]
[1732610833568,23.776884,232.46,232.4,27.75247994]
[1732610833888,51.52936394,232.46,232.39,32.05547994]
[1732610834176,23.776884,232.46,232.4,27.75247994]
[1732610834780,27.75247994,232.49,232.42,27.75247994]
[1732610834987,51.52936394,232.48,232.41,27.75247994]
[1732610835285,27.75247994,232.47,232.4,27.75247994]
[1732610835583,27.75247994,232.45,232.38,27.75247994]
[1732610835778,27.75247994,232.45,232.38,32.05557994]
[1732610836294,23.776884,232.48,232.41,27.75247994]
[1732610836491,27.75247994,232.47,232.4,27.75247994]
[1732610837081,23.776884,232.46,232.4,27.75247994]
[1732610837284,23.776884,232.46,232.41,27.75247994]
[1732610837460,27.75247994,232.51,232.44,27.75247994]
[1732610837785,27.75247994,232.53,232.46,27.75247994]
[1732610837985,27.75247994,232.54,232.47,27.75247994]
[1732610838481,27.75247994,232.56,232.49,27.75247994]
[1732610839074,27.75247994,232.54,232.47,27.75247994]
[1732610839271,27.75247994,232.52,232.45,32.05447994]
[1732610839484,27.75247994,232.52,232.46,27.75247994]
[1732610840072,23.776884,232.52,232.47,27.75247994]
[1732610840383,51.52936394,232.53,232.46,32.05407994]
[1732610840573,23.776884,232.53,232.47,27.75247994]
[1732610841170,27.75247994,232.58,232.51,27.75247994]
[1732610841373,27.75247994,232.62,232.55,27.75247994]
[1732610841574,27.75247994,232.63,232.56,27.75247994]
[1732610841776,4.2983,232.65,232.47,10.0]
[1732610841777,27.75247994,232.64,232.57,27.75247994]
[1732610841980,27.75247994,232.61,232.54,27.75247994]
[1732610842367,27.75247994,232.62,232.55,27.75247994]
[1732610842565,27.75247994,232.62,232.55,32.05247994]
[1732610842875,27.75247994,232.68,232.54,27.75247994]
[1732610842876,51.52936394,232.61,232.54,27.75247994]
[1732610843185,51.52936394,232.61,232.54,32.05277994]
[1732610843417,27.75247994,232.65,232.58,27.75247994]
[1732610843771,27.75247994,232.64,232.57,27.75247994]
[1732610844071,27.75247994,232.62,232.55,34.34447994]
[1732610844275,27.75247994,232.64,232.57,27.75247994]
[1732610844471,27.75247994,232.63,232.56,27.75247994]
[1732610844661,27.75247994,232.63,232.56,32.05237994]
[1732610844863,23.776884,232.59,232.55,6.592]
[1732610845093,51.52936394,232.59,232.52,27.75247994]
[1732610845284,51.52936394,232.59,232.53,27.75247994]
[1732610845482,27.75247994,232.54,232.5,6.592]
[1732610845786,23.776884,232.54,232.5,6.592]
[1732610846364,23.776884,232.57,232.52,27.75247994]
[1732610846795,23.776884,232.57,232.51,32.05317994]
[1732610847091,51.52936394,232.57,232.51,4.3007]
[1732610847290,23.776884,232.57,232.51,32.05317994]
[1732610847495,27.75247994,232.62,232.55,27.75247994]
[1732610847662,27.75247994,232.62,232.51,4.3007]
[1732610847663,27.75247994,232.62,232.56,27.75247994]
[1732610847869,27.75247994,232.6,232.53,27.75247994]
[1732610848069,27.75247994,232.61,232.54,27.75247994]
[1732610848367,27.75247994,232.62,232.55,27.75247994]
[1732610848576,27.75247994,232.62,232.5,6.592]
[1732610848577,27.75247994,232.59,232.5,6.592]
[1732610848783,15.043,232.67,232.5,38.64537994]
[1732610848784,27.75247994,232.57,232.5,38.64537994]
[1732610848964,27.75247994,232.56,232.5,10.8929]
[1732610849365,27.75247994,232.57,232.5,38.64537994]
[1732610849781,23.776884,232.56,232.5,38.64537994]
[1732610849978,23.776884,232.56,232.51,27.75247994]
[1732610850186,23.776884,232.57,232.51,27.75247994]
[1732610850382,23.776884,232.57,232.5,6.592]
[1732610850383,27.75247994,232.55,232.5,6.592]
[1732610850588,27.75247994,232.53,232.5,6.592]
[1732610850769,23.776884,232.52,232.5,6.592]
[1732610851176,23.776884,232.53,232.5,6.592]
[1732610851384,51.52936394,232.53,232.46,27.75247994]
[1732610851597,27.75247994,232.5,232.44,6.592]
[1732610851778,27.75247994,232.46,232.39,38.64737994]
[1732610851972,51.52936394,232.45,232.39,10.8949]
[1732610852194,23.776884,232.45,232.39,38.64737994]
[1732610852388,27.75247994,232.44,232.39,6.592]
[1732610853102,51.52936394,232.45,232.39,6.592]
[1732610853308,27.75247994,232.43,232.39,6.592]
[1732610853596,51.52936394,232.43,232.39,6.592]
[1732610853794,23.776884,232.45,232.39,6.592]
[1732610853795,27.75247994,232.42,232.39,6.592]
[1732610854178,23.776884,232.41,232.35,27.75247994]
[1732610854379,27.75247994,232.42,232.35,32.05627994]
[1732610854981,23.776884,232.42,232.36,27.75247994]
[1732610855504,23.776884,232.42,232.37,27.75247994]
[1732610856074,27.75247994,232.46,232.39,27.75247994]
[1732610856379,23.776884,232.45,232.39,27.75247994]
[1732610857598,23.776884,232.45,232.33,38.23027994]
[1732610857599,51.52936394,232.4,232.33,38.23027994]
[1732610857790,27.75247994,232.39,232.33,10.4778]
[1732610858487,23.776884,232.4,232.35,27.75247994]
[1732610858886,23.776884,232.41,232.35,27.75247994]
[1732610859196,27.75247994,232.4,232.33,33.92617994]
[1732610860479,51.52936394,232.41,232.34,32.05647994]
[1732610860681,23.776884,232.44,232.38,27.75247994]
[1732610861303,27.75247994,232.43,232.36,27.75247994]
[1732610861609,27.75247994,232.43,232.34,4.304]
[1732610861610,23.776884,232.42,232.37,27.75247994]
[1732610861903,23.776884,232.42,232.36,27.75247994]
[1732610862103,23.776884,232.42,232.37,27.75247994]
[1732610862995,27.75247994,232.41,232.35,4.3037]
[1732610863300,27.75247994,232.38,232.33,6.1737]
[1732610863606,32.05497994,232.42,232.35,27.75247994]
[1732610863794,23.776884,232.4,232.35,27.75247994]
[1732610863999,4.3007,232.52,232.33,10.4778]
[1732610864191,32.05307994,232.53,232.46,27.75247994]
[1732610864502,27.75247994,232.54,232.47,27.75247994]
[1732610864684,27.75247994,232.53,232.46,27.75247994]
[1732610864884,27.75247994,232.51,232.43,27.75247994]
[1732610865083,27.75247994,232.51,232.44,27.75247994]
[1732610865285,27.75247994,232.5,232.43,27.75247994]
[1732610865502,27.75247994,232.49,232.42,27.75247994]
[1732610866004,23.776884,232.48,232.42,27.75247994]
[1732610866413,15.0491,232.57,232.44,27.75247994]
[1732610866618,27.75247994,232.49,232.42,27.75247994]
[1732610866797,23.776884,232.48,232.43,27.75247994]
[1732610866997,51.52936394,232.5,232.43,27.75247994]
[1732610867309,27.75247994,232.49,232.42,27.75247994]
[1732610867612,23.776884,232.44,232.4,27.75247994]
[1732610868110,23.776884,232.46,232.4,27.75247994]
[1732610868710,23.776884,232.46,232.36,20.0]
[1732610868711,23.776884,232.46,232.41,27.75247994]
[1732610869117,27.75247994,232.49,232.42,27.75247994]
[1732610869486,27.75247994,232.48,232.41,32.05507994]
[1732610870816,23.776884,232.48,232.42,27.75247994]
[1732610871032,23.776884,232.48,232.43,27.75247994]
[1732610871318,27.75247994,232.5,232.42,27.75247994]
[1732610871319,27.75247994,232.49,232.42,27.75247994]
[1732610871620,51.52936394,232.48,232.41,27.75247994]
[1732610872009,23.776884,232.48,232.41,27.75247994]
[1732610872322,23.776884,232.48,232.42,4.3025]
[1732610872521,23.776884,232.48,232.36,20.0]
[1732610872522,27.75247994,232.46,232.39,32.05547994]
[1732610872699,27.75247994,232.45,232.38,27.75247994]
[1732610872900,51.52936394,232.42,232.35,32.05617994]
[1732610873104,23.776884,232.42,232.37,27.75247994]
[1732610873314,23.776884,232.43,232.37,27.75247994]
[1732610873512,51.52936394,232.43,232.36,27.75247994]
[1732610873921,51.52936394,232.43,232.37,4.3034]
[1732610874114,23.776884,232.43,232.37,32.05587994]
[1732610874497,27.75247994,232.44,232.38,27.75247994]
[1732610874701,51.52936394,232.44,232.37,32.05587994]
[1732610875431,23.776884,232.44,232.38,27.75247994]
[1732610875599,23.776884,232.44,232.37,4.3034]
[1732610875600,51.52936394,232.44,232.37,32.05587994]
[1732610877356,27.75247994,232.42,232.37,4.3034]
[1732610877517,51.52936394,232.44,232.37,32.05587994]
[1732610877837,51.52936394,232.44,232.39,27.75247994]
[1732610877838,23.776884,232.44,232.39,27.75247994]
[1732610878025,23.776884,232.46,232.4,27.75247994]
[1732610878208,23.776884,232.47,232.41,27.75247994]
[1732610878410,23.776884,232.48,232.42,27.75247994]
[1732610878610,51.52936394,232.48,232.41,27.75247994]
[1732610878835,23.776884,232.45,232.39,27.75247994]
[1732610879128,23.776884,232.46,232.4,27.75247994]
[1732610879334,23.776884,232.46,232.4,32.05517994]
[1732610880434,51.52936394,232.46,232.4,4.3027]
[1732610880963,23.776884,232.46,232.4,32.05517994]
[1732610881637,51.52936394,232.42,232.35,27.75247994]
[1732610881838,27.75247994,232.4,232.33,33.92617994]
[1732610882041,28.078684,232.46,232.33,33.92617994]
[1732610882042,23.776884,232.37,232.33,6.1737]
[1732610882329,38.833184,232.46,232.33,6.1737]
[1732610882330,27.75247994,232.4,232.33,33.92617994]
[1732610882511,23.776884,232.41,232.35,27.75247994]
[1732610882913,23.776884,232.41,232.34,27.75247994]
[1732610883118,23.776884,232.41,232.24,20.0]
[1732610883119,27.75247994,232.35,232.28,27.75247994]
[1732610883314,27.75247994,232.34,232.29,4.3048]
[1732610883526,27.75247994,232.33,232.27,10.9199]
[1732610883736,27.75247994,232.34,232.28,27.75247994]
[1732610884039,27.75247994,232.32,232.27,6.6148]
[1732610884231,23.776884,232.33,232.27,38.67247994]
[1732610884535,51.52936394,232.33,232.27,6.6148]
[1732610884713,51.52936394,232.33,232.26,32.05787994]
[1732610884916,23.776884,232.29,232.22,27.75247994]
[1732610885115,51.52936394,232.29,232.22,27.75247994]
[1732610885316,27.75247994,232.28,232.21,27.75247994]
[1732610886219,27.75247994,232.23,232.16,27.75247994]
[1732610886442,27.75247994,232.22,232.15,27.75247994]
[1732610886615,27.75247994,232.24,232.17,27.75247994]
[1732610886936,27.75247994,232.22,232.14,6.6148]
[1732610887243,27.75247994,232.21,232.15,27.75247994]
[1732610887632,23.776884,232.29,232.16,27.75247994]
[1732610887633,28.081884,232.29,232.16,27.75247994]
[1732610887815,28.081884,232.29,232.18,27.75247994]
[1732610887816,27.75247994,232.25,232.18,27.75247994]
[1732610888015,27.75247994,232.25,232.12,4.3081]
[1732610888016,51.52936394,232.24,232.17,27.75247994]
[1732610888212,27.75247994,232.25,232.18,27.75247994]
[1732610888427,27.75247994,232.29,232.22,27.75247994]
[1732610888623,27.75247994,232.3,232.23,27.75247994]
[1732610888830,27.75247994,232.31,232.24,27.75247994]
[1732610889033,27.75247994,232.32,232.25,27.75247994]
[1732610889624,16.6453,232.36,232.24,27.75247994]
[1732610889625,27.75247994,232.31,232.24,27.75247994]
[1732610890023,27.75247994,232.27,232.22,6.6148]
[1732610890333,27.75247994,232.26,232.22,6.6148]
[1732610890522,27.75247994,232.25,232.19,4.3067]
[1732610890715,4.3043,232.33,232.19,4.3067]
[1732610890716,23.776884,232.3,232.24,27.75247994]
[1732610890917,23.776884,232.32,232.19,4.3067]
[1732610891115,27.75247994,232.35,232.28,27.75247994]
[1732610891344,27.75247994,232.36,232.3,27.75247994]
[1732610891639,16.6453,232.42,232.16,6.6148]
[1732610891640,27.75247994,232.38,232.31,27.75247994]
[1732610892048,27.75247994,232.35,232.28,27.75247994]
[1732610892358,4.3028,232.41,232.26,16.2579]
[1732610892359,27.75247994,232.33,232.26,44.01037994]
[1732610892817,27.75247994,232.32,232.26,48.31577994]
[1732610893428,27.75247994,232.32,232.26,16.2579]
[1732610893634,27.75247994,232.29,232.22,34.36727994]
[1732610893839,27.75247994,232.28,232.22,10.921]
[1732610894147,15.0628,232.36,232.22,38.67347994]
[1732610894148,27.75247994,232.29,232.22,38.67347994]
[1732610895039,27.75247994,232.28,232.22,6.6148]
[1732610895540,27.75247994,232.28,232.22,10.9209]
[1732610896138,27.75247994,232.32,232.25,27.75247994]
[1732610896645,27.75247994,232.31,232.24,27.75247994]
[1732610896848,27.75247994,232.29,232.22,38.67337994]
[1732610897629,27.75247994,232.28,232.22,6.6148]
[1732610898149,27.75247994,232.27,232.22,6.6148]
[1732610898452,27.75247994,232.29,232.22,6.6148]
[1732610898746,27.75247994,232.28,232.22,6.6148]
[1732610898950,27.75247994,232.3,232.22,38.67347994]
[1732610899254,27.75247994,232.29,232.22,10.921]
[1732610899625,27.75247994,232.25,232.17,27.75247994]
[1732610899833,27.75247994,232.32,232.16,6.2948]
[1732610899834,27.75247994,232.23,232.16,6.2948]
[1732610900137,27.75247994,232.22,232.16,6.2948]
[1732610901047,27.75247994,232.25,232.19,27.75247994]
[1732610901740,27.75247994,232.26,232.19,27.75247994]
[1732610902038,27.75247994,232.27,232.21,27.75247994]
[1732610902657,27.75247994,232.28,232.21,27.75247994]
[1732610902830,27.75247994,232.31,232.24,27.75247994]
[1732610903353,27.75247994,232.29,232.22,27.75247994]
[1732610903524,4.3031,232.39,232.19,20.0]
[1732610903732,27.75247994,232.34,232.28,27.75247994]
[1732610904052,27.75247994,232.37,232.3,27.75247994]
[1732610904252,7.53883814,232.4,232.27,6.2948]
[1732610904548,27.75247994,232.36,232.29,27.75247994]
[1732610904755,27.75247994,232.36,232.3,27.75247994]
[1732610905253,27.75247994,232.33,232.27,34.04727994]
[1732610905433,27.75247994,232.33,232.27,38.35237994]
[1732610905635,27.75247994,232.34,232.28,27.75247994]
[1732610906159,27.75247994,232.34,232.27,10.5999]
[1732610906160,27.75247994,232.39,232.32,27.75247994]
[1732610907059,4.3033,232.38,232.28,32.05757994]
[1732610907233,27.75247994,232.32,232.27,6.2948]
[1732610907658,20.0,232.37,232.27,6.2948]
[1732610907856,23.776884,232.32,232.27,6.2948]
[1732610908031,23.776884,232.32,232.22,6.2948]
[1732610908654,20.0,232.29,232.22,6.2948]
[1732610908832,27.75247994,232.25,232.22,6.2948]
[1732610909236,27.75247994,232.24,232.22,6.2948]
[1732610912059,27.75247994,232.28,232.22,6.2948]
[1732610912232,27.75247994,232.3,232.23,32.05847994]
[1732610912432,27.75247994,232.3,232.24,17.36849797]
[1732610912433,17.36849797,232.3,232.24,17.36849797]
[1732610912748,17.36849797,232.29,232.23,21.67449797]
[1732610913052,7.53883814,232.4,232.23,21.67449797]
[1732610913053,17.36849797,232.32,232.25,17.36849797]
[1732610913255,17.36849797,232.3,232.23,21.67449797]
[1732610913461,17.36849797,232.29,232.22,23.66329797]
[1732610913962,17.36849797,232.29,232.22,27.96949797]
[1732610915854,17.36849797,232.26,232.22,6.2948]
[1732610916055,17.36849797,232.25,232.22,6.2948]
[1732610916271,17.36849797,232.26,232.22,6.2948]
[1732610916565,17.36849797,232.29,232.22,27.96949797]
[1732610916759,23.776884,232.3,232.22,27.96949797]
[1732610916760,17.36849797,232.27,232.22,10.601]
[1732610916964,17.36849797,232.27,232.22,6.2948]
[1732610917145,23.776884,232.3,232.22,6.2948]
[1732610917146,17.36849797,232.25,232.22,6.2948]
[1732610917346,17.36849797,232.23,232.17,6.3912]
[1732610917547,23.776884,232.3,232.17,6.3912]
[1732610917548,17.36849797,232.22,232.17,6.3912]
[1732610917973,17.36849797,232.21,232.17,6.3912]
[1732610918261,17.36849797,232.19,232.17,6.3912]
[1732610918442,10.0,232.28,232.15,15.12222237]
[1732610918443,17.36849797,232.18,232.15,0.03052237]
[1732610918649,17.36849797,232.18,232.12,17.36849797]
[1732610918843,23.776884,232.16,232.11,6.8884288]
[1732610919060,17.36849797,232.13,232.11,6.8884288]
[1732610919452,17.36849797,232.14,232.11,6.8884288]
[1732610919657,17.36849797,232.13,232.11,6.8884288]
[1732610919963,17.03544797,232.13,232.11,6.8884288]
[1732610920264,27.82827723,232.14,232.11,6.8884288]
[1732610920443,27.82827723,232.15,232.11,6.8884288]
[1732610920765,27.82827723,232.14,232.11,6.8884288]
[1732610920968,4.3074,232.16,232.11,6.8884288]
[1732610921159,27.82827723,232.14,232.11,6.8884288]
[1732610922359,27.82827723,232.12,232.11,0.4972288]
[1732610922854,27.82827723,232.13,232.11,0.4972288]
[1732610923442,43.776884,232.08,231.94,10.7026]
[1732610923744,43.776884,232.08,231.94,6.3912]
[1732610923745,27.82827723,232.01,231.94,6.3912]
[1732610924169,51.60516123,232.01,231.94,6.3912]
[1732610924547,32.13837723,232.01,231.91,4.3118]
[1732610924746,32.13837723,232.01,231.92,4.3117]
[1732610924947,27.82827723,232.01,231.9,34.21947723]
[1732610925247,27.82827723,232.01,231.91,4.3118]
[1732610925446,51.60516123,232.01,231.9,6.3912]
[1732610925992,27.82827723,232.01,231.91,32.14017723]
[1732610926471,27.82827723,232.01,231.91,27.82827723]
[1732610926848,27.82827723,232.01,231.94,27.82827723]
[1732610927363,27.82827723,232.01,231.95,4.3111]
[1732610928163,27.82827723,232.01,231.92,27.82827723]
[1732610928470,51.60516123,232.01,231.9,6.3912]
[1732610928671,55.91526123,232.01,231.9,6.3912]
[1732610930253,55.91526123,232.01,231.88,0.4972288]
[1732610930254,20.0,231.97,231.88,0.4972288]
[1732610930471,27.82827723,231.89,231.88,0.4972288]
[1732610931051,27.82827723,231.92,231.88,0.4972288]
[1732610931252,20.0,231.98,231.88,0.4972288]
[1732610931453,4.3094,232.05,231.97,34.00297723]
[1732610931673,4.309,232.07,232.02,27.82827723]
[1732610931979,4.309,232.07,231.97,6.1747]
[1732610931980,7.5489842,232.08,231.97,6.1747]
[1732610932146,7.5489842,232.08,232.05,27.82827723]
[1732610932355,7.5489842,232.08,232.07,27.82827723]
[1732610932654,0.8823842,232.08,232.07,54.66447723]
[1732610932857,10.7627,232.29,232.1,20.0]
[1732610933068,10.7627,232.29,232.14,27.82827723]
[1732610933277,27.82827723,232.17,232.1,27.82827723]
[1732610933506,10.0,232.26,232.08,27.82827723]
[1732610933770,27.82827723,232.14,232.07,50.35547723]
[1732610934357,5.74043613,232.17,232.11,27.82827723]
[1732610934556,5.74043613,232.17,232.07,26.8361]
[1732610934557,27.82827723,232.16,232.09,27.82827723]
[1732610934976,27.82827723,232.15,232.08,27.82827723]
[1732610935556,32.13577723,232.16,232.08,27.82827723]
[1732610935868,32.13577723,232.16,232.09,27.82827723]
[1732610936076,27.82827723,232.16,232.09,27.82827723]
[1732610936263,27.82827723,232.18,232.11,27.82827723]
[1732610936462,27.82827723,232.17,232.1,27.82827723]
[1732610936778,27.82827723,232.16,232.09,27.82827723]
[1732610937279,27.82827723,232.16,232.07,22.5272]
[1732610937280,27.82827723,232.18,232.11,27.82827723]
[1732610937484,27.82827723,232.17,232.09,27.82827723]
[1732610937973,27.82827723,232.15,232.07,50.35547723]
[1732610938182,27.82827723,232.14,232.07,22.5272]
[1732610938675,27.82827723,232.15,232.07,50.35547723]
[1732610939658,32.13597723,232.15,232.07,50.35547723]
[1732610939957,32.13597723,232.15,231.96,27.82827723]
[1732610939958,27.82827723,232.12,232.04,27.82827723]
[1732610940356,27.82827723,232.12,232.05,27.82827723]
[1732610940559,32.13507723,232.19,232.11,27.82827723]
[1732610940778,27.82827723,232.17,232.1,27.82827723]
[1732610941003,27.82827723,232.11,232.02,10.5829]
[1732610941175,27.82827723,232.11,232.02,6.2731]
[1732610941659,27.82827723,232.11,232.01,20.5642]
[1732610941660,27.82827723,232.03,231.96,34.10137723]
[1732610941871,27.82827723,232.01,231.96,6.2731]
[1732610942079,15.74043613,232.1,231.96,34.10137723]
[1732610942080,27.82827723,232.03,231.96,34.10137723]
[1732610942758,27.82827723,232.02,231.96,6.2731]
[1732610942964,27.82827723,231.99,231.92,27.82827723]
[1732610943658,32.13857723,232.0,231.93,27.82827723]
[1732610943985,27.82827723,231.95,231.89,16.2541]
[1732610944277,32.13857723,232.0,231.92,27.82827723]
[1732610944455,4.3103,232.0,231.89,20.5664]
[1732610944654,4.3103,232.0,231.93,27.82827723]
[1732610944883,4.31,232.02,231.93,27.82827723]
[1732610945188,27.82827723,232.0,231.93,27.82827723]
[1732610945384,20.0,232.03,231.97,27.82827723]
[1732610945676,24.3099,232.03,231.97,27.82827723]
[1732610945875,24.3099,232.03,231.89,31.3473]
[1732610945876,27.82827723,232.02,231.94,27.82827723]
[1732610946062,27.82827723,232.02,231.95,27.82827723]
[1732610946983,20.0,232.03,231.97,27.82827723]
[1732610947286,27.82827723,232.04,231.97,27.82827723]
[1732610947580,27.82827723,232.05,231.97,27.82827723]
[1732610947784,15.0802,232.09,231.96,27.82827723]
[1732610947955,27.82827723,232.0,231.9,4.3122]
[1732610948281,27.82827723,232.01,231.94,27.82827723]
[1732610948982,27.82827723,231.98,231.9,27.82827723]
[1732610949284,27.82827723,231.97,231.9,27.82827723]
[1732610949489,4.3102,232.01,231.89,20.5663]
[1732610949784,27.82827723,232.03,231.96,27.82827723]
[1732610949985,27.82827723,232.0,231.92,27.82827723]
[1732610950275,17.41796072,231.99,231.92,17.41796072]
[1732610950766,17.41796072,232.0,231.93,17.41796072]
[1732610951076,21.72836072,232.0,231.93,17.41796072]
[1732610951259,17.41796072,232.01,231.94,17.41796072]
[1732610951455,4.3092,232.06,231.95,17.41796072]
[1732610951456,17.41796072,232.02,231.95,17.41796072]
[1732610951691,17.41796072,231.98,231.9,21.73016072]
[1732610951857,17.41796072,231.96,231.89,33.67206072]
[1732610952060,17.41796072,231.96,231.89,16.2541]
[1732610952380,17.41796072,231.95,231.89,16.2541]
[1732610952568,17.41796072,231.95,231.88,17.91518952]
[1732610952569,17.41796072,231.94,231.88,0.4972288]
[1732610952886,21.72986072,231.92,231.88,0.4972288]
[1732610953093,17.41796072,231.89,231.88,0.4972288]
[1732610953382,41.19484472,231.89,231.88,0.4972288]
[1732610954786,17.41796072,231.89,231.88,0.4972288]
[1732610954986,21.73026072,231.89,231.88,0.4972288]
[1732610955374,4.3123,231.89,231.88,0.4972288]
[1732610955570,21.73026072,231.89,231.88,0.4972288]
[1732610955784,45.50714472,231.89,231.88,0.4972288]
[1732610956363,55.98469937,231.89,231.88,0.4972288]
[1732610957762,32.20771537,231.9,231.88,0.4972288]
[1732610958177,27.89551537,231.89,231.88,0.4972288]
[1732610958490,4.3122,231.9,231.88,0.4972288]
[1732610958659,32.20771537,231.9,231.88,0.4972288]
[1732610958859,27.89551537,231.89,231.88,0.4972288]
[1732610959061,51.67239937,231.89,231.88,0.4972288]
[1732610959888,57.4128355,231.89,231.88,0.4972288]
[1732610960106,57.4128355,231.89,231.71,44.18711537]
[1732610960107,27.89551537,231.78,231.71,44.18711537]
[1732610960263,27.89551537,231.77,231.71,16.2916]
[1732610960464,27.89551537,231.78,231.71,44.18711537]